[Event "Titled Tuesday Blitz March 01 Late 2022"]
[White "Srebrnic, Marko"]
[Black "Urbina Perez, Juan Antonio"]
[WhiteFideId "14603616"]
[BlackFideId "2217368"]
[WhiteElo "2340"]
[BlackElo "2192"]
[Result "1-0"]
[Round "02"]
[TimeControl "180+1"]
[Date "2022.03.02"]
[WhiteClock "0:00:09"]
[BlackClock "0:00:21"]

1. e4 {[%clk 0:02:59]}  c5 {[%clk 0:02:58]} 2. Nf3 {[%clk 0:02:58]}  d6 {[%clk 0:02:58]} 3. d4 {[%clk 0:02:58]}  cxd4 {[%clk 0:02:59]} 4. Nxd4 {[%clk 0:02:59]}  Nf6 {[%clk 0:03:00]} 5. Nc3 {[%clk 0:03:00]}  Nc6 {[%clk 0:02:59]} 6. Bc4 {[%clk 0:02:59]}  e6 {[%clk 0:02:43]} 7. O-O {[%clk 0:02:54]}  Qb6 {[%clk 0:02:42]} 8. Nde2 {[%clk 0:02:53]}  Be7 {[%clk 0:02:40]} 9. Be3 {[%clk 0:02:47]}  Qxb2 {[%clk 0:02:39]} 10. Rb1 {[%clk 0:02:47]}  Qa3 {[%clk 0:02:39]} 11. Nb5 {[%clk 0:02:25]}  Qa5 {[%clk 0:02:39]} 12. Nxd6+ {[%clk 0:02:25]}  Bxd6 {[%clk 0:02:29]} 13. Qxd6 {[%clk 0:02:26]}  Nxe4 {[%clk 0:02:24]} 14. Qf4 {[%clk 0:02:25]}  Qf5 {[%clk 0:02:17]} 15. Qxf5 {[%clk 0:02:14]}  exf5 {[%clk 0:02:18]} 16. Rfd1 {[%clk 0:01:32]}  O-O {[%clk 0:02:15]} 17. f3 {[%clk 0:01:32]}  Nf6 {[%clk 0:02:11]} 18. Bc5 {[%clk 0:01:30]}  Re8 {[%clk 0:02:10]} 19. Nf4 {[%clk 0:01:28]}  Nd7 {[%clk 0:02:05]} 20. Bd6 {[%clk 0:01:19]}  Nb6 {[%clk 0:02:04]} 21. Bb5 {[%clk 0:01:15]}  Be6 {[%clk 0:02:02]} 22. a4 {[%clk 0:01:08]}  Rad8 {[%clk 0:01:49]} 23. a5 {[%clk 0:01:02]}  Nc8 {[%clk 0:01:49]} 24. Bc5 {[%clk 0:00:57]}  a6 {[%clk 0:01:44]} 25. Bxc6 {[%clk 0:00:53]}  bxc6 {[%clk 0:01:45]} 26. Rxd8 {[%clk 0:00:52]}  Rxd8 {[%clk 0:01:45]} 27. Rb8 {[%clk 0:00:50]}  g5 {[%clk 0:01:38]} 28. Nd3 {[%clk 0:00:41]}  Kg7 {[%clk 0:01:20]} 29. Kf2 {[%clk 0:00:41]}  Rd5 {[%clk 0:01:18]} 30. Ke3 {[%clk 0:00:34]}  f4+ {[%clk 0:01:17]} 31. Ke2 {[%clk 0:00:28]}  Nd6 {[%clk 0:01:14]} 32. Bxd6 {[%clk 0:00:28]}  Rxd6 {[%clk 0:01:15]} 33. Rb6 {[%clk 0:00:17]}  Bc4 {[%clk 0:01:15]} 34. Kd2 {[%clk 0:00:17]}  Kf6 {[%clk 0:01:14]} 35. Kc3 {[%clk 0:00:17]}  Bb5 {[%clk 0:01:13]} 36. Nc5 {[%clk 0:00:17]}  h5 {[%clk 0:01:00]} 37. Nxa6 {[%clk 0:00:16]}  Bxa6 {[%clk 0:00:58]} 38. Rxa6 {[%clk 0:00:17]}  Ke5 {[%clk 0:00:56]} 39. Rb6 {[%clk 0:00:14]}  Kd5 {[%clk 0:00:56]} 40. a6 {[%clk 0:00:14]}  Rd8 {[%clk 0:00:56]} 41. Rb7 {[%clk 0:00:13]}  Ra8 {[%clk 0:00:56]} 42. a7 {[%clk 0:00:13]}  f6 {[%clk 0:00:54]} 43. Rf7 {[%clk 0:00:12]}  Ke6 {[%clk 0:00:54]} 44. Rh7 {[%clk 0:00:12]}  h4 {[%clk 0:00:54]} 45. Kc4 {[%clk 0:00:12]}  Kd6 {[%clk 0:00:52]} 46. h3 {[%clk 0:00:13]}  Re8 {[%clk 0:00:48]} 47. Rb7 {[%clk 0:00:11]}  Ra8 {[%clk 0:00:48]} 48. Kd4 {[%clk 0:00:10]}  f5 {[%clk 0:00:38]} 49. Kc4 {[%clk 0:00:08]}  c5 {[%clk 0:00:34]} 50. Rh7 {[%clk 0:00:08]}  Kc6 {[%clk 0:00:34]} 51. Rg7 {[%clk 0:00:08]}  Kd6 {[%clk 0:00:32]} 52. Rh7 {[%clk 0:00:07]}  Kc6 {[%clk 0:00:31]} 53. Rh6+ {[%clk 0:00:07]}  Kb7 {[%clk 0:00:30]} 54. Kb5 {[%clk 0:00:07]}  Kxa7 {[%clk 0:00:22]} 55. Ra6+ {[%clk 0:00:06]}  Kb7 {[%clk 0:00:22]} 56. Rxa8 {[%clk 0:00:07]}  Kxa8 {[%clk 0:00:23]} 57. Kxc5 {[%clk 0:00:08]}  g4 {[%clk 0:00:22]} 58. Kd5 {[%clk 0:00:08]}  gxf3 {[%clk 0:00:21]} 59. gxf3 {[%clk 0:00:09]} 1-0


[Site "https://www.chess.com"]

[Event "Titled Tuesday Blitz March 01 Late 2022"]
[White "Suder, Jakub"]
[Black "Lopez Del Alamo, Antonio"]
[WhiteFideId "1195310"]
[BlackFideId "2227339"]
[WhiteElo "2058"]
[BlackElo "2082"]
[Result "1-0"]
[Round "02"]
[TimeControl "180+1"]
[Date "2022.03.02"]
[WhiteClock "0:01:47"]
[BlackClock "0:01:12"]

1. d4 {[%clk 0:03:00]}  Nf6 {[%clk 0:02:55]} 2. c4 {[%clk 0:03:00]}  g6 {[%clk 0:02:55]} 3. Nc3 {[%clk 0:03:01]}  Bg7 {[%clk 0:02:56]} 4. e4 {[%clk 0:03:01]}  d6 {[%clk 0:02:56]} 5. Be2 {[%clk 0:03:01]}  O-O {[%clk 0:02:56]} 6. Nf3 {[%clk 0:03:02]}  e5 {[%clk 0:02:55]} 7. O-O {[%clk 0:03:03]}  Nc6 {[%clk 0:02:54]} 8. d5 {[%clk 0:03:03]}  Ne7 {[%clk 0:02:55]} 9. Ne1 {[%clk 0:03:04]}  Nd7 {[%clk 0:02:54]} 10. Be3 {[%clk 0:03:03]}  f5 {[%clk 0:02:55]} 11. f3 {[%clk 0:03:03]}  f4 {[%clk 0:02:55]} 12. Bf2 {[%clk 0:03:04]}  g5 {[%clk 0:02:56]} 13. Nb5 {[%clk 0:03:03]}  a6 {[%clk 0:02:53]} 14. Na7 {[%clk 0:03:03]}  Rxa7 {[%clk 0:02:51]} 15. Bxa7 {[%clk 0:03:04]}  b6 {[%clk 0:02:52]} 16. b4 {[%clk 0:02:29]}  Bb7 {[%clk 0:02:48]} 17. c5 {[%clk 0:02:27]}  dxc5 {[%clk 0:02:48]} 18. Qa4 {[%clk 0:02:16]}  Nc8 {[%clk 0:01:59]} 19. Bxa6 {[%clk 0:02:12]}  Bxa6 {[%clk 0:01:57]} 20. Qxa6 {[%clk 0:02:12]}  cxb4 {[%clk 0:01:56]} 21. Nd3 {[%clk 0:01:57]}  Qe7 {[%clk 0:01:36]} 22. Rac1 {[%clk 0:01:51]}  Nxa7 {[%clk 0:01:13]} 23. Qxa7 {[%clk 0:01:50]}  Nc5 {[%clk 0:01:13]} 24. Nxc5 {[%clk 0:01:50]}  bxc5 {[%clk 0:01:12]} 25. Qxc5 {[%clk 0:01:47]} 1-0


[Site "https://www.chess.com"]

[Event "Titled Tuesday Blitz March 01 Late 2022"]
[White "Tanenbaum, Zachary"]
[Black "Martinez Alcantara, Jose Eduardo"]
[WhiteFideId "2060850"]
[BlackFideId "3805662"]
[WhiteElo "2168"]
[BlackElo "2690"]
[Result "0-1"]
[Round "02"]
[TimeControl "180+1"]
[Date "2022.03.01"]
[WhiteClock "0:00:27"]
[BlackClock "0:00:13"]

1. e4 {[%clk 0:03:00]}  c5 {[%clk 0:03:00]} 2. Nf3 {[%clk 0:03:01]}  d6 {[%clk 0:03:00]} 3. d4 {[%clk 0:03:01]}  cxd4 {[%clk 0:03:01]} 4. Nxd4 {[%clk 0:03:02]}  Nf6 {[%clk 0:03:02]} 5. Nc3 {[%clk 0:03:02]}  Nc6 {[%clk 0:03:03]} 6. Bg5 {[%clk 0:03:02]}  e6 {[%clk 0:03:03]} 7. Bb5 {[%clk 0:03:02]}  Bd7 {[%clk 0:03:03]} 8. Qd3 {[%clk 0:03:02]}  h6 {[%clk 0:02:56]} 9. Bh4 {[%clk 0:03:01]}  Be7 {[%clk 0:02:48]} 10. O-O-O {[%clk 0:02:59]}  Rc8 {[%clk 0:02:45]} 11. Bxc6 {[%clk 0:02:59]}  bxc6 {[%clk 0:02:30]} 12. Nb3 {[%clk 0:02:59]}  e5 {[%clk 0:02:11]} 13. Bxf6 {[%clk 0:02:58]}  gxf6 {[%clk 0:02:12]} 14. Nd2 {[%clk 0:02:58]}  Be6 {[%clk 0:01:59]} 15. Nc4 {[%clk 0:02:56]}  d5 {[%clk 0:02:00]} 16. exd5 {[%clk 0:02:09]}  cxd5 {[%clk 0:01:59]} 17. Ne3 {[%clk 0:02:10]}  d4 {[%clk 0:01:57]} 18. Nf5 {[%clk 0:02:10]}  Qa5 {[%clk 0:00:38]} 19. Ng7+ {[%clk 0:02:05]}  Kf8 {[%clk 0:00:38]} 20. Nxe6+ {[%clk 0:02:05]}  fxe6 {[%clk 0:00:39]} 21. Qb5 {[%clk 0:01:20]}  Qc7 {[%clk 0:00:34]} 22. Rd3 {[%clk 0:01:12]}  dxc3 {[%clk 0:00:32]} 23. Rxc3 {[%clk 0:01:13]}  Qb8 {[%clk 0:00:30]} 24. Rxc8+ {[%clk 0:01:04]}  Qxc8 {[%clk 0:00:30]} 25. Rd1 {[%clk 0:01:05]}  Kf7 {[%clk 0:00:27]} 26. Rd7 {[%clk 0:01:03]}  a6 {[%clk 0:00:22]} 27. Qd3 {[%clk 0:01:00]}  e4 {[%clk 0:00:13]} 28. Qd6 {[%clk 0:00:59]}  Re8 {[%clk 0:00:13]} 29. Ra7 {[%clk 0:00:46]}  Qc4 {[%clk 0:00:13]} 30. Qxa6 {[%clk 0:00:36]}  Qxa6 {[%clk 0:00:11]} 31. Rxa6 {[%clk 0:00:37]}  Bc5 {[%clk 0:00:12]} 32. Ra4 {[%clk 0:00:30]}  f5 {[%clk 0:00:11]} 33. f3 {[%clk 0:00:27]}  Rd8 {[%clk 0:00:12]} 34. fxe4 {[%clk 0:00:27]}  Be3+ {[%clk 0:00:12]} 35. Kb1 {[%clk 0:00:27]}  Rd1# {[%clk 0:00:13]} 0-1


[Site "https://www.chess.com"]

[Event "Titled Tuesday Blitz March 01 Late 2022"]
[White "Tari, Aryan"]
[Black "Hjartarson, Johann"]
[WhiteFideId "1510045"]
[BlackFideId "2300044"]
[WhiteElo "2567"]
[BlackElo "2484"]
[Result "1-0"]
[Round "02"]
[TimeControl "180+1"]
[Date "2022.03.01"]
[WhiteClock "0:00:25"]
[BlackClock "0:00:12"]

1. c4 {[%clk 0:03:00]}  g6 {[%clk 0:02:59]} 2. g3 {[%clk 0:03:00]}  Bg7 {[%clk 0:02:59]} 3. Bg2 {[%clk 0:03:01]}  c5 {[%clk 0:02:59]} 4. Nc3 {[%clk 0:03:01]}  Nc6 {[%clk 0:02:59]} 5. d3 {[%clk 0:03:01]}  d6 {[%clk 0:02:56]} 6. Qd2 {[%clk 0:02:59]}  Nf6 {[%clk 0:02:54]} 7. b3 {[%clk 0:02:52]}  O-O {[%clk 0:02:52]} 8. Bb2 {[%clk 0:02:52]}  a6 {[%clk 0:02:50]} 9. e3 {[%clk 0:02:52]}  Bd7 {[%clk 0:02:49]} 10. Nge2 {[%clk 0:02:52]}  Rb8 {[%clk 0:02:48]} 11. h3 {[%clk 0:02:46]}  b5 {[%clk 0:02:47]} 12. O-O {[%clk 0:02:47]}  Qa5 {[%clk 0:02:32]} 13. Rad1 {[%clk 0:02:34]}  bxc4 {[%clk 0:02:21]} 14. dxc4 {[%clk 0:02:32]}  Qb4 {[%clk 0:02:20]} 15. Qc1 {[%clk 0:02:14]}  Rfe8 {[%clk 0:02:14]} 16. Nf4 {[%clk 0:01:48]}  Qa5 {[%clk 0:02:03]} 17. Qa1 {[%clk 0:01:47]}  Ne5 {[%clk 0:01:57]} 18. Ncd5 {[%clk 0:01:44]}  Nxd5 {[%clk 0:01:36]} 19. Nxd5 {[%clk 0:01:45]}  f6 {[%clk 0:01:32]} 20. f4 {[%clk 0:01:39]}  Nf7 {[%clk 0:01:31]} 21. e4 {[%clk 0:01:37]}  Bc6 {[%clk 0:01:23]} 22. e5 {[%clk 0:01:33]}  fxe5 {[%clk 0:01:12]} 23. Nxe7+ {[%clk 0:01:31]}  Rxe7 {[%clk 0:01:12]} 24. Bxc6 {[%clk 0:01:32]}  Nh6 {[%clk 0:00:58]} 25. fxe5 {[%clk 0:01:19]}  Bxe5 {[%clk 0:00:42]} 26. Bxe5 {[%clk 0:00:38]}  dxe5 {[%clk 0:00:41]} 27. Be4 {[%clk 0:00:36]}  Kg7 {[%clk 0:00:30]} 28. Rf2 {[%clk 0:00:32]}  Rd8 {[%clk 0:00:24]} 29. Rdf1 {[%clk 0:00:31]}  Rd2 {[%clk 0:00:20]} 30. Qe1 {[%clk 0:00:30]}  Rxa2 {[%clk 0:00:18]} 31. Qe3 {[%clk 0:00:28]}  Rxf2 {[%clk 0:00:18]} 32. Rxf2 {[%clk 0:00:28]}  Qa1+ {[%clk 0:00:18]} 33. Kh2 {[%clk 0:00:27]}  Qd4 {[%clk 0:00:18]} 34. Qe1 {[%clk 0:00:25]}  Rf7 {[%clk 0:00:17]} 35. Re2 {[%clk 0:00:25]}  Nf5 {[%clk 0:00:17]} 36. Bg2 {[%clk 0:00:26]}  Qd3 {[%clk 0:00:13]} 37. Rxe5 {[%clk 0:00:24]}  Qxg3+ {[%clk 0:00:13]} 38. Qxg3 {[%clk 0:00:24]}  Nxg3 {[%clk 0:00:12]} 39. Kxg3 {[%clk 0:00:25]} 1-0


[Site "https://www.chess.com"]

[Event "Titled Tuesday Blitz March 01 Late 2022"]
[White "Tomiello, Mateus Costamilan"]
[Black "Zarubitski, Viachaslau"]
[WhiteFideId "22701958"]
[BlackFideId "13509373"]
[WhiteElo "1975"]
[BlackElo "2325"]
[Result "0-1"]
[Round "02"]
[TimeControl "180+1"]
[Date "2022.03.01"]
[WhiteClock "0:00:09"]
[BlackClock "0:00:59"]

1. e4 {[%clk 0:03:00]}  c5 {[%clk 0:02:54]} 2. Nf3 {[%clk 0:03:00]}  Nc6 {[%clk 0:02:54]} 3. d4 {[%clk 0:03:00]}  cxd4 {[%clk 0:02:55]} 4. Nxd4 {[%clk 0:03:00]}  g6 {[%clk 0:02:53]} 5. c4 {[%clk 0:02:57]}  Bg7 {[%clk 0:02:53]} 6. Nc2 {[%clk 0:02:56]}  d6 {[%clk 0:02:51]} 7. Be2 {[%clk 0:02:56]}  Nf6 {[%clk 0:02:48]} 8. Nc3 {[%clk 0:02:54]}  O-O {[%clk 0:02:47]} 9. O-O {[%clk 0:02:54]}  Nd7 {[%clk 0:02:48]} 10. Bd2 {[%clk 0:02:40]}  a5 {[%clk 0:02:46]} 11. Rb1 {[%clk 0:02:35]}  Nc5 {[%clk 0:02:44]} 12. f3 {[%clk 0:02:28]}  Be6 {[%clk 0:02:42]} 13. Kh1 {[%clk 0:02:23]}  f5 {[%clk 0:02:39]} 14. b3 {[%clk 0:02:02]}  Bf7 {[%clk 0:02:19]} 15. exf5 {[%clk 0:01:56]}  gxf5 {[%clk 0:02:20]} 16. Ne3 {[%clk 0:01:56]}  e6 {[%clk 0:02:17]} 17. f4 {[%clk 0:01:53]}  Qh4 {[%clk 0:02:16]} 18. Be1 {[%clk 0:01:42]}  Qh6 {[%clk 0:02:16]} 19. Qxd6 {[%clk 0:01:35]}  Bxc3 {[%clk 0:02:03]} 20. Bxc3 {[%clk 0:01:29]}  Ne4 {[%clk 0:02:04]} 21. Nxf5 {[%clk 0:01:29]}  Qg6 {[%clk 0:01:49]} 22. Qd4 {[%clk 0:01:17]}  Nxd4 {[%clk 0:01:30]} 23. Ne7+ {[%clk 0:01:17]}  Kg7 {[%clk 0:01:22]} 24. Bxd4+ {[%clk 0:01:15]}  Qf6 {[%clk 0:01:20]} 25. Bxf6+ {[%clk 0:01:05]}  Kxf6 {[%clk 0:01:21]} 26. Bf3 {[%clk 0:01:01]}  Nd2 {[%clk 0:01:22]} 27. Rbd1 {[%clk 0:00:38]}  Nxf1 {[%clk 0:01:20]} 28. Bxb7 {[%clk 0:00:30]}  Rab8 {[%clk 0:01:17]} 29. Nc6 {[%clk 0:00:30]}  Rxb7 {[%clk 0:01:16]} 30. Rxf1 {[%clk 0:00:31]}  Rc8 {[%clk 0:01:14]} 31. Ne5 {[%clk 0:00:31]}  a4 {[%clk 0:01:13]} 32. Rf3 {[%clk 0:00:24]}  axb3 {[%clk 0:01:12]} 33. axb3 {[%clk 0:00:25]}  Bg6 {[%clk 0:01:07]} 34. Re3 {[%clk 0:00:20]}  Bc2 {[%clk 0:01:03]} 35. g4 {[%clk 0:00:18]}  Rxb3 {[%clk 0:01:02]} 36. Re2 {[%clk 0:00:16]}  Bd3 {[%clk 0:01:01]} 37. Re3 {[%clk 0:00:10]}  Bxc4 {[%clk 0:01:00]} 38. g5+ {[%clk 0:00:09]}  Kf5 {[%clk 0:01:00]} 39. Nxc4 {[%clk 0:00:09]}  Rb1+ {[%clk 0:01:00]} 40. Kg2 {[%clk 0:00:10]}  Rxc4 {[%clk 0:01:00]} 41. Re5+ {[%clk 0:00:08]}  Kxf4 {[%clk 0:01:00]} 42. Rxe6 {[%clk 0:00:08]}  Rc2+ {[%clk 0:00:58]} 43. Kh3 {[%clk 0:00:09]}  Rb3+ {[%clk 0:00:59]} 0-1


[Site "https://www.chess.com"]

[Event "Titled Tuesday Blitz March 01 Late 2022"]
[White "Wagner, Dennis"]
[Black "Tomb, Maroun"]
[WhiteFideId "24650684"]
[BlackFideId "5300398"]
[WhiteElo "2355"]
[BlackElo "2543"]
[Result "0-1"]
[Round "02"]
[TimeControl "180+1"]
[Date "2022.03.01"]
[WhiteClock "0:00:07"]
[BlackClock "0:00:48"]

1. d4 {[%clk 0:03:00]}  d6 {[%clk 0:02:57]} 2. e4 {[%clk 0:03:00]}  Nf6 {[%clk 0:02:58]} 3. Nc3 {[%clk 0:03:00]}  e5 {[%clk 0:02:58]} 4. Nf3 {[%clk 0:02:59]}  Nbd7 {[%clk 0:02:58]} 5. Bc4 {[%clk 0:02:58]}  Be7 {[%clk 0:02:58]} 6. a4 {[%clk 0:02:57]}  c6 {[%clk 0:02:58]} 7. O-O {[%clk 0:02:53]}  Qc7 {[%clk 0:02:58]} 8. h3 {[%clk 0:02:41]}  h6 {[%clk 0:02:56]} 9. Be3 {[%clk 0:02:40]}  Nf8 {[%clk 0:02:55]} 10. a5 {[%clk 0:02:27]}  Ng6 {[%clk 0:02:55]} 11. Re1 {[%clk 0:02:26]}  O-O {[%clk 0:02:50]} 12. Qd2 {[%clk 0:02:22]}  Kh7 {[%clk 0:02:50]} 13. Bf1 {[%clk 0:02:16]}  Nh5 {[%clk 0:02:43]} 14. g3 {[%clk 0:02:15]}  Nf6 {[%clk 0:02:36]} 15. Bg2 {[%clk 0:02:12]}  Be6 {[%clk 0:02:34]} 16. b3 {[%clk 0:01:50]}  Rfd8 {[%clk 0:02:31]} 17. d5 {[%clk 0:01:46]}  cxd5 {[%clk 0:02:31]} 18. Nxd5 {[%clk 0:01:40]}  Nxd5 {[%clk 0:02:14]} 19. exd5 {[%clk 0:01:41]}  Bd7 {[%clk 0:02:11]} 20. c4 {[%clk 0:01:41]}  f5 {[%clk 0:02:10]} 21. Nh2 {[%clk 0:01:33]}  Bf6 {[%clk 0:02:10]} 22. Rac1 {[%clk 0:01:28]}  Rf8 {[%clk 0:02:01]} 23. f4 {[%clk 0:01:25]}  e4 {[%clk 0:01:50]} 24. b4 {[%clk 0:01:23]}  b6 {[%clk 0:01:41]} 25. axb6 {[%clk 0:01:15]}  axb6 {[%clk 0:01:41]} 26. Qf2 {[%clk 0:01:15]}  Rfb8 {[%clk 0:01:37]} 27. Nf1 {[%clk 0:01:13]}  Ra4 {[%clk 0:01:37]} 28. b5 {[%clk 0:01:08]}  Rxc4 {[%clk 0:01:32]} 29. Bxb6 {[%clk 0:01:06]}  Rxb6 {[%clk 0:01:20]} 30. Rxc4 {[%clk 0:00:52]}  Qxc4 {[%clk 0:01:20]} 31. Ne3 {[%clk 0:00:53]}  Qc5 {[%clk 0:01:11]} 32. g4 {[%clk 0:00:52]}  Bd4 {[%clk 0:01:11]} 33. gxf5 {[%clk 0:00:44]}  Bxf5 {[%clk 0:01:10]} 34. Kh2 {[%clk 0:00:44]}  Rxb5 {[%clk 0:01:09]} 35. Qg3 {[%clk 0:00:19]}  Bxe3 {[%clk 0:01:06]} 36. Rxe3 {[%clk 0:00:19]}  Rb2 {[%clk 0:01:04]} 37. h4 {[%clk 0:00:16]}  Nxh4 {[%clk 0:00:58]} 38. Qxh4 {[%clk 0:00:08]}  Qxe3 {[%clk 0:00:57]} 39. Kh1 {[%clk 0:00:06]}  Rb1+ {[%clk 0:00:50]} 40. Kh2 {[%clk 0:00:06]}  Qg1+ {[%clk 0:00:49]} 41. Kg3 {[%clk 0:00:07]}  Qe1+ {[%clk 0:00:48]} 0-1


[Site "https://www.chess.com"]

[Event "Titled Tuesday Blitz March 01 Late 2022"]
[White "Winkels, Marcel"]
[Black "Grischuk, Alexander"]
[WhiteFideId "1003887"]
[BlackFideId "4126025"]
[WhiteElo "1900"]
[BlackElo "2762"]
[Result "0-1"]
[Round "02"]
[TimeControl "180+1"]
[Date "2022.03.02"]
[WhiteClock "0:00:02"]
[BlackClock "0:00:54"]

1. e4 {[%clk 0:03:00]}  d5 {[%clk 0:03:00]} 2. exd5 {[%clk 0:02:59]}  Qxd5 {[%clk 0:03:01]} 3. Nc3 {[%clk 0:02:59]}  Qa5 {[%clk 0:03:01]} 4. d4 {[%clk 0:02:58]}  Nf6 {[%clk 0:03:01]} 5. Bd2 {[%clk 0:02:59]}  c6 {[%clk 0:03:01]} 6. Bc4 {[%clk 0:02:54]}  Bf5 {[%clk 0:02:55]} 7. Qe2 {[%clk 0:02:47]}  Qc7 {[%clk 0:02:54]} 8. O-O-O {[%clk 0:02:42]}  Nbd7 {[%clk 0:02:51]} 9. Nf3 {[%clk 0:02:41]}  e6 {[%clk 0:02:51]} 10. Ne5 {[%clk 0:02:40]}  b5 {[%clk 0:02:47]} 11. Bd3 {[%clk 0:02:22]}  Bxd3 {[%clk 0:02:45]} 12. cxd3 {[%clk 0:02:16]}  Bd6 {[%clk 0:02:42]} 13. f4 {[%clk 0:02:11]}  O-O {[%clk 0:02:41]} 14. Kb1 {[%clk 0:02:02]}  Nd5 {[%clk 0:02:26]} 15. Ne4 {[%clk 0:01:59]}  f6 {[%clk 0:02:20]} 16. Nxd6 {[%clk 0:01:48]}  Qxd6 {[%clk 0:02:19]} 17. Nxd7 {[%clk 0:01:38]}  Qxd7 {[%clk 0:02:19]} 18. Rde1 {[%clk 0:01:26]}  Rfe8 {[%clk 0:02:19]} 19. g4 {[%clk 0:01:22]}  b4 {[%clk 0:02:14]} 20. g5 {[%clk 0:01:20]}  f5 {[%clk 0:02:14]} 21. h4 {[%clk 0:01:14]}  Rab8 {[%clk 0:02:13]} 22. Ka1 {[%clk 0:01:11]}  Qc7 {[%clk 0:01:29]} 23. Qe5 {[%clk 0:00:57]}  Qxe5 {[%clk 0:01:25]} 24. fxe5 {[%clk 0:00:56]}  Kf7 {[%clk 0:01:22]} 25. h5 {[%clk 0:00:56]}  Ke7 {[%clk 0:01:20]} 26. Rc1 {[%clk 0:00:46]}  Kd7 {[%clk 0:01:20]} 27. Rc4 {[%clk 0:00:44]}  a5 {[%clk 0:01:15]} 28. Rhc1 {[%clk 0:00:43]}  Rb6 {[%clk 0:01:15]} 29. a3 {[%clk 0:00:39]}  f4 {[%clk 0:01:08]} 30. Rf1 {[%clk 0:00:30]}  Rf8 {[%clk 0:01:08]} 31. Rc2 {[%clk 0:00:28]}  Rf5 {[%clk 0:01:08]} 32. Rg1 {[%clk 0:00:24]}  f3 {[%clk 0:01:06]} 33. h6 {[%clk 0:00:21]}  g6 {[%clk 0:01:05]} 34. Rcc1 {[%clk 0:00:17]}  bxa3 {[%clk 0:00:56]} 35. bxa3 {[%clk 0:00:16]}  Rb3 {[%clk 0:00:57]} 36. Ka2 {[%clk 0:00:12]}  Rxd3 {[%clk 0:00:58]} 37. Rcd1 {[%clk 0:00:09]}  a4 {[%clk 0:00:55]} 38. Bb4 {[%clk 0:00:06]}  Rxd1 {[%clk 0:00:53]} 39. Rxd1 {[%clk 0:00:04]}  f2 {[%clk 0:00:54]} 40. Rf1 {[%clk 0:00:02]}  Ne3 {[%clk 0:00:54]} 0-1


[Site "https://www.chess.com"]

[Event "Titled Tuesday Blitz March 01 Late 2022"]
[White "Wu, Sibo"]
[Black "Jacobson, Aaron"]
[WhiteFideId "8606048"]
[BlackFideId "2089912"]
[WhiteElo "2307"]
[BlackElo "2265"]
[Result "0-1"]
[Round "02"]
[TimeControl "180+1"]
[Date "2022.03.02"]
[WhiteClock "0:00:42"]
[BlackClock "0:01:08"]

1. d4 {[%clk 0:03:00]}  Nf6 {[%clk 0:02:51]} 2. Bf4 {[%clk 0:03:00]}  g6 {[%clk 0:02:43]} 3. Nc3 {[%clk 0:03:00]}  b5 {[%clk 0:02:40]} 4. Nxb5 {[%clk 0:02:54]}  Nd5 {[%clk 0:02:40]} 5. Bg3 {[%clk 0:02:51]}  c6 {[%clk 0:02:41]} 6. Nc3 {[%clk 0:02:40]}  Qb6 {[%clk 0:02:33]} 7. Nxd5 {[%clk 0:02:31]}  cxd5 {[%clk 0:02:34]} 8. Rb1 {[%clk 0:02:27]}  Nc6 {[%clk 0:02:32]} 9. c3 {[%clk 0:02:26]}  Ba6 {[%clk 0:02:24]} 10. Nf3 {[%clk 0:02:21]}  f6 {[%clk 0:02:16]} 11. Qb3 {[%clk 0:02:18]}  Qa5 {[%clk 0:02:15]} 12. e3 {[%clk 0:01:58]}  Bxf1 {[%clk 0:02:15]} 13. Rxf1 {[%clk 0:01:58]}  d6 {[%clk 0:02:14]} 14. a3 {[%clk 0:01:45]}  Rb8 {[%clk 0:02:13]} 15. Qc2 {[%clk 0:01:44]}  e5 {[%clk 0:02:12]} 16. Nd2 {[%clk 0:01:36]}  Kf7 {[%clk 0:02:06]} 17. f4 {[%clk 0:01:26]}  e4 {[%clk 0:01:58]} 18. f5 {[%clk 0:01:26]}  g5 {[%clk 0:01:55]} 19. Kf2 {[%clk 0:01:22]}  h5 {[%clk 0:01:55]} 20. h4 {[%clk 0:01:22]}  Rg8 {[%clk 0:01:52]} 21. Kg1 {[%clk 0:01:17]}  gxh4 {[%clk 0:01:52]} 22. Bxh4 {[%clk 0:01:17]}  Rg4 {[%clk 0:01:52]} 23. g3 {[%clk 0:01:09]}  Bh6 {[%clk 0:01:50]} 24. Rbe1 {[%clk 0:01:08]}  Rbg8 {[%clk 0:01:47]} 25. Kh2 {[%clk 0:01:08]}  Bg5 {[%clk 0:01:40]} 26. Bxg5 {[%clk 0:01:06]}  R8xg5 {[%clk 0:01:41]} 27. Rg1 {[%clk 0:01:03]}  h4 {[%clk 0:01:41]} 28. Nf1 {[%clk 0:01:02]}  hxg3+ {[%clk 0:01:39]} 29. Rxg3 {[%clk 0:01:02]}  Qd8 {[%clk 0:01:25]} 30. Qg2 {[%clk 0:00:58]}  Qh8+ {[%clk 0:01:24]} 31. Kg1 {[%clk 0:00:56]}  Qh4 {[%clk 0:01:25]} 32. Kf2 {[%clk 0:00:51]}  Rxf5+ {[%clk 0:01:20]} 33. Ke2 {[%clk 0:00:51]}  Rxf1 {[%clk 0:01:16]} 34. Rxf1 {[%clk 0:00:42]}  Rxg3 {[%clk 0:01:08]} 0-1


[Site "https://www.chess.com"]